fUST/lending_fUST_20260424
["ID","MTS","AMOUNT","RATE_DAILY","PERIOD"]
[421087071,1777006239098,-287.961216,0.00017227,2]
[421087073,1777006239107,-151.0,0.00017227,2]
[421087075,1777006239117,-151.0,0.00017227,2]
[421087077,1777006239126,-151.0,0.00017227,2]
[421087079,1777006239136,-151.0,0.00017227,2]
[421087081,1777006239145,-250.19576,0.00017227,2]
[421087083,1777006239156,-250.19576,0.00017227,2]
[421087085,1777006239165,-250.19576,0.00017227,2]
[421087087,1777006239175,-250.19576,0.00017227,2]
[421087089,1777006239186,-250.19576,0.00017227,2]
[421087091,1777006239195,-250.19576,0.00017227,2]
[421087094,1777006239210,-250.19576,0.00017227,2]
[421087096,1777006239221,-250.19576,0.00017227,2]
[421087098,1777006239230,-250.19576,0.00017227,2]
[421087100,1777006239242,-250.19576,0.00017227,2]
[421087102,1777006239253,-250.19576,0.00017227,2]
[421087104,1777006239263,-250.19576,0.00017227,2]
[421087106,1777006239275,-250.19576,0.00017227,2]
[421087108,1777006239286,-250.19576,0.00017227,2]
[421087111,1777006239297,-250.19576,0.00017227,2]
[421087113,1777006239308,-250.195756,0.00017227,2]
[421087115,1777006239318,-500.0,0.00017228,2]
[421087117,1777006239329,-500.0,0.00017228,2]
[421087119,1777006239339,-500.0,0.00017228,2]
[421087121,1777006239349,-154.967486,0.00017228,2]
[421087123,1777006239360,-151.0,0.00017228,2]
[421087125,1777006239370,-151.0,0.00017228,2]
[421087127,1777006239382,-151.0,0.00017228,2]
[421087129,1777006239395,-244.329266,0.00017228,2]
[421087132,1777006239405,-995.0,0.00017229,2]
[421087134,1777006239415,-995.0,0.00017229,2]
[421087136,1777006239426,-995.0,0.00017229,2]
[421087138,1777006239437,-995.0,0.00017229,2]
[421087140,1777006239447,-150.0,0.00017229,2]
[421087142,1777006239458,-995.0,0.00017229,2]
[421087144,1777006239468,-150.0,0.00017229,2]
[421087146,1777006239478,-150.0,0.00017229,2]
[421087148,1777006239488,-151.06432346,0.00017229,2]
[421087151,1777006239499,-995.0,0.00017229,2]
[421087153,1777006239509,-995.0,0.00017229,2]
[421087155,1777006239520,-995.0,0.00017229,2]
[421087157,1777006239531,-995.0,0.00017229,2]
[421087159,1777006239541,-995.0,0.00017229,2]
[421087161,1777006239551,-995.0,0.00017229,2]
[421087163,1777006239561,-995.0,0.00017229,2]
[421087165,1777006239570,-995.0,0.00017229,2]
[421087167,1777006239581,-995.0,0.00017229,2]
[421087169,1777006239592,-995.0,0.00017229,2]
[421087172,1777006239603,-995.0,0.00017229,2]
[421087174,1777006239613,-995.0,0.00017229,2]
[421087176,1777006239623,-995.0,0.00017229,2]
[421087178,1777006239634,-995.0,0.00017229,2]
[421087180,1777006239645,-995.0,0.00017229,2]
[421087182,1777006239655,-995.0,0.00017229,2]
[421087184,1777006239665,-995.0,0.00017229,2]
[421087186,1777006239675,-995.0,0.00017229,2]
[421087188,1777006239685,-1010.83865413,0.00017229,2]
[421087190,1777006239695,-151.0,0.00017229,2]
[421087192,1777006239705,-151.0,0.00017229,2]
[421087194,1777006239715,-151.0,0.00017229,2]
[421087196,1777006239725,-151.0,0.00017229,2]
[421087198,1777006239735,-151.0,0.00017229,2]
[421087201,1777006239745,-151.0,0.00017229,2]
[421087203,1777006239755,-151.0,0.00017229,2]
[421087205,1777006239765,-151.0,0.00017229,2]
[421087207,1777006239774,-151.0,0.00017229,2]
[421087210,1777006239785,-151.0,0.00017229,2]
[421087212,1777006239796,-151.0,0.00017229,2]
[421087214,1777006239806,-151.0,0.00017229,2]
[421087215,1777006239816,-151.0,0.00017229,2]
[421087216,1777006239825,-151.0,0.00017229,2]
[421087217,1777006239836,-181.551221,0.00017229,2]
[421087219,1777006239846,-151.0,0.00017229,2]
[421087220,1777006239856,-151.0,0.00017229,2]
[421087221,1777006239865,-151.0,0.00017229,2]
[421087223,1777006239875,-151.0,0.00017229,2]
[421087225,1777006239885,-151.0,0.00017229,2]
[421087227,1777006239895,-151.0,0.00017229,2]
[421087229,1777006239905,-151.0,0.00017229,2]
[421087230,1777006239914,-191.454528,0.00017229,2]
[421087232,1777006239924,-311.670044,0.00017229,2]
[421087234,1777006239934,-311.670044,0.00017229,2]
[421087236,1777006239944,-311.670044,0.00017229,2]
[421087238,1777006239954,-311.670044,0.00017229,2]
[421087240,1777006239964,-311.670044,0.00017229,2]
[421087242,1777006239975,-311.670044,0.00017229,2]
[421087244,1777006239985,-311.670044,0.00017229,2]
[421087246,1777006239994,-311.670044,0.00017229,2]
[421087248,1777006240005,-311.670044,0.00017229,2]
[421087251,1777006240016,-311.670044,0.00017229,2]
[421087252,1777006240026,-311.670044,0.00017229,2]
[421087253,1777006240036,-311.670044,0.00017229,2]
[421087254,1777006240046,-311.670044,0.00017229,2]
[421087255,1777006240057,-311.670044,0.00017229,2]
[421087256,1777006240067,-311.670044,0.00017229,2]
[421087257,1777006240077,-311.670044,0.00017229,2]
[421087258,1777006240087,-151.0,0.00017229,2]
[421087259,1777006240097,-151.361306,0.00017229,2]
[421087261,1777006240107,-151.0,0.00017229,2]
[421087263,1777006240117,-151.0,0.00017229,2]
[421087265,1777006240127,-151.0,0.00017229,2]
[421087267,1777006240136,-151.0,0.00017229,2]
[421087268,1777006240146,-151.0,0.00017229,2]
[421087270,1777006240156,-151.0,0.00017229,2]
[421087273,1777006240166,-151.0,0.00017229,2]
[421087274,1777006240176,-151.0,0.00017229,2]
[421087276,1777006240186,-151.0,0.00017229,2]
[421087278,1777006240196,-151.554971,0.00017229,2]
[421087280,1777006240206,-500.0,0.00017229,2]
[421087283,1777006240216,-152.0,0.00017232,7]
[421087284,1777006240226,-367.70113967,0.00017242,2]
[421087285,1777006240236,-151.0,0.00017243,2]
[421087286,1777006240246,-151.0,0.00017243,2]
[421087287,1777006240256,-151.0,0.00017243,2]
[421087288,1777006240266,-151.0,0.00017243,2]
[421087289,1777006240276,-311.670044,0.00017243,2]
[421087290,1777006240286,-311.670044,0.00017243,2]
[421087291,1777006240296,-311.670044,0.00017243,2]
[421087292,1777006240306,-311.670034,0.00017243,2]
[421087293,1777006240316,-151.0,0.00017243,2]
[421087294,1777006240327,-283.972799,0.00017243,2]
[421087296,1777006240336,-386.7068343,0.00017243,2]
[421087298,1777006240346,-457.3556125,0.00017243,2]
[421087300,1777006240356,-180.0865262,0.00017397,2]
[421087302,1777006240366,-232.85,0.00017495,2]
[421087304,1777006240376,-388.08,0.00017495,2]
[421087306,1777006240386,-232.85,0.00017495,2]
[421087308,1777006240396,-151.0,0.00017495,2]
[421087310,1777006240406,-151.0,0.00017495,2]
[421087312,1777006240416,-151.0,0.00017495,2]
[421087314,1777006240426,-151.0,0.00017495,2]
[421087316,1777006240436,-151.0,0.00017495,2]
[421087318,1777006240446,-500.0,0.000175,2]
[421087320,1777006240456,-500.0,0.00017501,2]
[421087322,1777006240466,-151.0,0.00017502,2]
[421087324,1777006240476,-151.0,0.00017502,2]
[421087327,1777006240486,-151.0,0.00017502,2]
[421087329,1777006240497,-151.0,0.00017502,2]
[421087331,1777006240507,-151.0,0.00017502,2]
[421087333,1777006240518,-218.2,0.00017502,2]
[421087335,1777006240528,-151.0,0.00017502,2]
[421087337,1777006240538,-151.0,0.00017502,2]
[421087339,1777006240547,-151.0,0.00017502,2]
[421087341,1777006240557,-151.0,0.00017502,2]
[421087343,1777006240567,-166.443038,0.00017502,2]
[421087345,1777006240577,-151.0,0.00017502,2]
[421087347,1777006240587,-151.0,0.00017502,2]
[421087349,1777006240596,-151.0,0.00017502,2]
[421087351,1777006240606,-151.0,0.00017502,2]
[421087353,1777006240615,-151.0,0.00017502,2]
[421087355,1777006240625,-261.568424,0.00017502,2]
[421087357,1777006240635,-500.0,0.00017502,2]
[421087359,1777006240644,-500.0,0.00017502,2]
[421087361,1777006240654,-500.0,0.00017502,2]
[421087363,1777006240664,-151.0,0.00017502,2]
[421087365,1777006240674,-151.0,0.00017502,2]
[421087367,1777006240683,-151.0,0.00017502,2]
[421087369,1777006240693,-151.0,0.00017502,2]
[421087371,1777006240703,-188.45574,0.00017502,2]
[421087373,1777006240713,-151.0,0.00017502,2]
[421087375,1777006240722,-151.0,0.00017502,2]
[421087377,1777006240732,-151.0,0.00017502,2]
[421087379,1777006240742,-151.0,0.00017502,2]
[421087381,1777006240752,-151.0,0.00017502,2]
[421087383,1777006240762,-220.4232051,0.00017502,2]
[421087416,1777006241052,-151.0,0.00017502,2]
[421087418,1777006241062,-238.515312,0.00017502,2]
[421087420,1777006241071,-500.0,0.00017502,2]
[421087422,1777006241081,-500.0,0.00017502,2]
[421087424,1777006241090,-157.3058476,0.00017503,2]
[421087426,1777006241100,-1982.2240614,0.00017503,2]
[421087428,1777006241110,-151.0,0.00017503,2]
[421087430,1777006241119,-151.0,0.00017503,2]
[421087432,1777006241128,-151.0,0.00017503,2]
[421087434,1777006241137,-151.0,0.00017503,2]
[421087436,1777006241146,-151.0,0.00017503,2]
[421087438,1777006241155,-151.0,0.00017503,2]
[421087440,1777006241165,-151.0,0.00017503,2]
[421087442,1777006241174,-151.0,0.00017503,2]
[421087444,1777006241184,-151.0,0.00017503,2]
[421087446,1777006241193,-151.0,0.00017503,2]
[421087448,1777006241202,-151.0,0.00017503,2]
[421087450,1777006241212,-151.0,0.00017503,2]
[421087452,1777006241221,-166.901832,0.00017503,2]
[421087454,1777006241231,-151.0,0.00017503,2]
[421087456,1777006241240,-151.0,0.00017503,2]
[421087458,1777006241250,-151.0,0.00017503,2]
[421087460,1777006241259,-151.0,0.00017503,2]
[421087462,1777006241269,-151.0,0.00017503,2]
[421087464,1777006241278,-151.0,0.00017503,2]
[421087466,1777006241288,-151.0,0.00017503,2]
[421087468,1777006241297,-151.0,0.00017503,2]
[421087470,1777006241306,-151.0,0.00017503,2]
[421087472,1777006241316,-500.0,0.00017503,2]
[421087474,1777006241325,-500.0,0.00017503,2]
[421087476,1777006241334,-537.6845,0.00017537,2]
[421087478,1777006241343,-242.53204597,0.00017537,2]
[421087480,1777006241352,-445.202766,0.00017537,2]
[421087482,1777006241362,-151.0,0.00017537,2]
[421087484,1777006241371,-162.380719,0.00017537,2]
[421087486,1777006241381,-537.6845,0.00017537,2]
[421087488,1777006241390,-156.587,0.00017537,2]
[421087490,1777006241400,-2150.738,0.00017537,2]
[421087492,1777006241409,-557.5788265,0.00017592,2]
[421087494,1777006241419,-578.20924308,0.00017647,2]
[421087496,1777006241428,-160.0,0.00017692,3]
[421087498,1777006241438,-599.60298507,0.00017702,2]
[421087500,1777006241447,-621.78829552,0.00017757,2]
[421087502,1777006241456,-500.0,0.00017763,2]
[421087504,1777006241466,-500.0,0.00017777,2]
[421087506,1777006241475,-500.0,0.00017799,2]
[421087508,1777006241484,-644.79446246,0.00017812,2]
[421087510,1777006241494,-668.65185757,0.00017867,2]
[421087511,1777006241503,-291.06,0.00017892,2]
[421087512,1777006241512,-485.1,0.00017892,2]
[421087513,1777006241522,-291.06,0.00017892,2]
[421087514,1777006241532,-693.3919763,0.00017922,2]
[421087515,1777006241541,-500.0,0.00017938,2]
[421087516,1777006241550,-500.0,0.00017938,2]
[421087517,1777006241560,-500.0,0.00017938,2]
[421087518,1777006241570,-500.0,0.00017938,2]
[421087519,1777006241579,-500.0,0.00017938,2]
[421087520,1777006241588,-500.0,0.00017938,2]
[421087521,1777006241597,-510.12883837,0.00017938,2]
[421087522,1777006241606,-719.04747942,0.00017977,2]
[421087523,1777006241615,-855.77505729,0.00017978,2]
[421087524,1777006241625,-745.65223616,0.00018032,2]
[421087525,1777006241634,-500.0,0.00018051,2]
[421087526,1777006241643,-461.67526834,0.00018085,2]
[421087527,1777006241652,-195.48705561,0.00018085,2]
[421087528,1777006241662,-153.73792017,0.00018085,2]
[421087529,1777006241672,-557.5788265,0.00018085,2]
[421087530,1777006241681,-2230.315306,0.00018085,2]
[421087531,1777006241691,-773.2413689,0.00018087,2]
[421087532,1777006241700,-300.0,0.000181,2]
[421087533,1777006241709,-2164.29589018,0.00018107,2]
[421087534,1777006241718,-184.96481587,0.00018135,60]
[421087536,1777006241727,-801.85129955,0.00018142,2]
[421087538,1777006241736,-500.0,0.00018148,2]
[421087540,1777006241745,-180.08652618,0.00018149,2]
[421087542,1777006241755,-220.44,0.00018157,2]
[421087544,1777006241763,-394.0,0.00018181,2]
[421087546,1777006241773,-420.0,0.00018181,2]
[421087548,1777006241782,-420.0,0.00018181,2]
[421087550,1777006241791,-420.0,0.00018181,2]
[421087552,1777006241800,-831.51979763,0.00018197,2]
[421087554,1777006241809,-500.0,0.00018213,2]
[421087556,1777006241818,-213.44818102,0.00018213,2]
[421087557,1777006241830,-862.28603014,0.00018252,2]
[421087559,1777006241839,-1680.0,0.00018271,2]
[421087562,1777006241851,-703.02,0.00018278,2]
[421087564,1777006241861,-349.27,0.0001829,2]
[421087566,1777006241870,-582.12,0.0001829,2]
[421087568,1777006241879,-349.27,0.0001829,2]
[421087570,1777006241888,-894.19061326,0.00018307,2]
[421087572,1777006241897,-500.0,0.00018325,2]
[421087574,1777006241906,-927.27566595,0.00018362,2]
[421087576,1777006241916,-961.58486559,0.00018417,2]
[421087578,1777006241926,-153.80286191,0.00018473,2]
[421087580,1777006241935,-200.0,0.00018511,2]
[421087582,1777006241947,-211.27323248,0.00018531,2]
[421087584,1777006241957,-270.0,0.00018576,2]
[421087586,1777006241966,-160.0,0.00018596,4]
[421087588,1777006241975,-511.97761818,0.00018599,2]
[421087590,1777006241984,-792.0,0.000186,2]
[421087592,1777006241995,-456.867367,0.0001862,7]
[421087594,1777006242004,-160.0,0.0001862,2]
[421087596,1777006242013,-1530.44347,0.0001862,2]
[421087598,1777006242022,-2900.886941,0.0001862,2]
[421087600,1777006242031,-189.178315,0.0001862,7]
[421087602,1777006242041,-478.75725327,0.00018633,2]
[421087604,1777006242050,-578.20924308,0.00018633,2]
[421087606,1777006242059,-2312.83697232,0.00018633,2]
[421087608,1777006242068,-407.48,0.00018687,2]
[421087610,1777006242078,-679.14,0.00018687,2]
[421087612,1777006242087,-407.48,0.00018687,2]
[421087614,1777006242097,-271.49257432,0.00018694,2]
[421087616,1777006242106,-205.26451188,0.00018702,2]
[421087618,1777006242115,-201.55481299,0.00018749,60]
[421087620,1777006242125,-302.09,0.00018767,5]
[421087622,1777006242134,-322.0,0.00018784,2]
[421087624,1777006242143,-500.0,0.00018794,2]
[421087626,1777006242153,-500.0,0.00018794,2]
[421087628,1777006242162,-500.0,0.00018794,2]
[421087630,1777006242173,-500.0,0.00018794,2]
[421087632,1777006242183,-541.36076561,0.00018794,2]
[421087634,1777006242192,-191.58613818,0.00018794,2]
[421087636,1777006242202,-581.52375134,0.00018849,5]
[421087638,1777006242211,-3017.2,0.000189,2]
[421087640,1777006242220,-180.08652618,0.000189,2]
[421087642,1777006242230,-646.0,0.000189,2]
[421087644,1777006242239,-2211.0,0.000189,2]
[421087646,1777006242249,-1409.0,0.000189,2]
[421087648,1777006242258,-150.266,0.000189,2]
[421087650,1777006242268,-612.975,0.00018913,2]
[421087652,1777006242277,-455.8385479,0.00018924,2]
[421087654,1777006242286,-672.8924189,0.00018939,2]
[421087656,1777006242296,-500.0,0.00018981,2]
[421087658,1777006242306,-500.0,0.00018999,2]
[421087660,1777006242316,-500.0,0.00018999,2]
[421087662,1777006242326,-500.0,0.00018999,2]
[421087664,1777006242336,-500.0,0.00018999,2]
[421087666,1777006242345,-500.0,0.00018999,2]
[421087668,1777006242355,-500.0,0.00018999,2]
[421087670,1777006242364,-500.0,0.00018999,2]
[421087672,1777006242373,-500.0,0.00018999,2]
[421087674,1777006242383,-500.0,0.00018999,2]
[421087676,1777006242392,-500.0,0.00018999,2]
[421087678,1777006242402,-500.0,0.00018999,2]
[421087681,1777006242412,-500.0,0.00018999,2]
[421087683,1777006242421,-500.0,0.00018999,2]
[421087685,1777006242431,-531.51583092,0.00018999,2]
[421087687,1777006242441,-298.0,0.00019,2]
[421087689,1777006242450,-168.0,0.00019,2]
[421087691,1777006242460,-160.0,0.00019,2]
[421087693,1777006242469,-2281.0,0.00019,2]
[421087695,1777006242478,-39611.02557258,0.00019,2]
[421087738,1777006242797,-13602.84797964,0.00019,2]
[421087740,1777006242808,-1021.54582054,0.00019,2]
[421087742,1777006242819,-3740.83102804,0.00019,2]
[421087745,1777006242831,-94559.40432952,0.00019,2]
[421087747,1777006242842,-67916.08442311,0.00019,2]
[421087749,1777006242853,-10375.30233937,0.00019,2]
[421087751,1777006242865,-169770.39034267,0.00019,2]
[421087753,1777006242874,-341.0,0.00019,2]
[421087755,1777006242884,-258.0,0.00019,2]
[421087757,1777006242893,-166.1926124,0.00019068,3]
[421087759,1777006242902,-5827.23974133,0.00019078,2]
[421087761,1777006242911,-150.572,0.00019083,2]
[421087763,1777006242920,-514.39,0.00019084,2]
[421087765,1777006242930,-640.36,0.00019084,2]
[421087767,1777006242940,-873.22,0.00019084,2]
[421087769,1777006242949,-640.37,0.00019084,2]
[421087771,1777006242958,-151.0,0.000191,2]
[421087773,1777006242967,-300.0,0.000191,2]
[421087775,1777006242977,-410.8873577,0.00019173,2]
[421087777,1777006242986,-500.0,0.00019173,2]
[421087779,1777006242995,-500.0,0.00019173,2]
[421087782,1777006243005,-150.0,0.00019173,2]
[421087783,1777006243015,-500.0,0.00019173,2]
[421087786,1777006243025,-501.14890123,0.00019173,2]
[421087788,1777006243034,-500.0,0.00019173,2]
[421087790,1777006243044,-500.0,0.00019173,2]
[421087792,1777006243053,-500.0,0.00019173,2]
[421087794,1777006243063,-500.0,0.00019173,2]
[421087795,1777006243074,-150.0,0.00019173,2]
[421087797,1777006243083,-158.39030113,0.00019173,2]
[421087799,1777006243093,-391.7576453,0.00019173,2]
[421087801,1777006243102,-160.18000491,0.00019173,2]
[421087803,1777006243111,-158.39838198,0.00019173,2]
[421087805,1777006243120,-167.70632469,0.00019173,2]
[421087808,1777006243130,-150.0,0.00019173,2]
[421087810,1777006243140,-426.31656956,0.00019173,2]
[421087812,1777006243149,-500.0,0.00019173,2]
[421087814,1777006243158,-158.39091971,0.00019173,2]
[421087816,1777006243168,-158.39800686,0.00019173,2]
[421087818,1777006243177,-298.44083429,0.00019173,2]
[421087820,1777006243187,-500.0,0.00019173,2]
[421087828,1777006243255,-500.0,0.00019173,2]
[421087830,1777006243265,-250.0,0.00019175,2]
[421087832,1777006243275,-704.0387,0.00019178,2]
[421087834,1777006243284,-1767.3624,0.00019178,2]
[421087836,1777006243293,-168.03565,0.00019178,2]
[421087838,1777006243302,-966.182661,0.00019178,2]
[421087840,1777006243311,-250.201689,0.00019178,2]
[421087842,1777006243320,-418.28211864,0.00019178,2]
[421087844,1777006243330,-500.0,0.00019178,2]
[421087846,1777006243339,-1706.66,0.00019178,2]
[421087848,1777006243350,-500.0,0.00019178,2]
[421087850,1777006243359,-500.0,0.00019178,2]
[421087852,1777006243369,-500.0,0.00019178,2]
[421087854,1777006243378,-544.67916194,0.00019178,2]
[421087856,1777006243387,-549.49,0.00019178,2]
[421087858,1777006243397,-500.0,0.00019178,2]
[421087860,1777006243406,-533.10358109,0.00019178,2]
[421087862,1777006243415,-533.53,0.00019178,2]
[421087864,1777006243426,-500.0,0.00019178,2]
[421087866,1777006243436,-607.46096167,0.00019178,2]
[421087868,1777006243446,-500.0,0.00019178,2]
[421087870,1777006243456,-500.0,0.00019178,2]
[421087872,1777006243465,-500.0,0.00019178,2]
[421087874,1777006243474,-1105.38,0.00019178,2]
[421087876,1777006243485,-500.0,0.00019178,2]
[421087878,1777006243495,-500.0,0.00019178,2]
[421087880,1777006243504,-500.0,0.00019178,2]
[421087882,1777006243513,-500.0,0.00019178,2]
[421087884,1777006243522,-500.0,0.00019178,2]
[421087886,1777006243532,-500.0,0.00019178,2]
[421087888,1777006243541,-505.65011657,0.00019178,2]
[421087890,1777006243550,-500.0,0.00019178,2]
[421087892,1777006243559,-240.82268334,0.00019178,2]
[421087895,1777006243569,-500.0,0.00019178,2]
[421087897,1777006243578,-500.0,0.00019178,2]
[421087899,1777006243587,-500.0,0.00019178,2]
[421087901,1777006243597,-500.0,0.00019178,2]
[421087903,1777006243606,-500.0,0.00019178,2]
[421087905,1777006243616,-500.0,0.00019178,2]
[421087907,1777006243626,-500.0,0.00019178,2]
[421087909,1777006243635,-500.0,0.00019178,2]
[421087911,1777006243644,-500.0,0.00019178,2]
[421087913,1777006243654,-500.0,0.00019178,2]
[421087915,1777006243663,-500.0,0.00019178,2]
[421087917,1777006243672,-500.0,0.00019178,2]
[421087919,1777006243682,-500.0,0.00019178,2]
[421087921,1777006243691,-500.0,0.00019178,2]
[421087923,1777006243700,-500.0,0.00019178,2]
[421087925,1777006243709,-500.0,0.00019178,2]
[421087926,1777006243719,-500.0,0.00019178,2]
[421087927,1777006243728,-2609.56,0.00019178,2]
[421087928,1777006243737,-500.0,0.00019178,2]
[421087930,1777006243746,-1243.49,0.00019178,2]
[421087932,1777006243756,-500.0,0.00019178,2]
[421087934,1777006243765,-500.0,0.00019178,2]
[421087936,1777006243776,-500.0,0.00019178,2]
[421087938,1777006243785,-500.0,0.00019178,2]
[421087940,1777006243794,-500.0,0.00019178,2]
[421087942,1777006243803,-500.0,0.00019178,2]
[421087944,1777006243813,-500.0,0.00019178,2]
[421087946,1777006243822,-500.0,0.00019178,2]
[421087948,1777006243831,-500.0,0.00019178,2]
[421087950,1777006243841,-500.0,0.00019178,2]
[421087952,1777006243850,-500.0,0.00019178,2]
[421087954,1777006243860,-500.0,0.00019178,2]
[421087956,1777006243869,-500.0,0.00019178,2]
[421087958,1777006243878,-500.0,0.00019178,2]
[421087960,1777006243887,-500.0,0.00019178,2]
[421087962,1777006243897,-500.0,0.00019178,2]
[421087964,1777006243906,-500.0,0.00019178,2]
[421087966,1777006243916,-500.0,0.00019178,2]
[421087968,1777006243925,-500.0,0.00019178,2]
[421087969,1777006243934,-500.0,0.00019178,2]
[421087970,1777006243944,-500.0,0.00019178,2]
[421087971,1777006243953,-500.0,0.00019178,2]
[421087972,1777006243963,-500.0,0.00019178,2]
[421087973,1777006243971,-500.0,0.00019178,2]
[421087974,1777006243981,-500.0,0.00019178,2]
[421087975,1777006243989,-500.0,0.00019178,2]
[421087976,1777006243999,-1136.21,0.00019178,2]
[421087977,1777006244009,-500.0,0.00019178,2]
[421087978,1777006244019,-500.0,0.00019178,2]
[421087979,1777006244028,-500.0,0.00019178,2]
[421087980,1777006244037,-500.0,0.00019178,2]
[421087981,1777006244046,-500.0,0.00019178,2]
[421087982,1777006244056,-509.02368708,0.00019178,2]
[421087983,1777006244065,-500.0,0.00019178,2]
[421087984,1777006244074,-500.0,0.00019178,2]
[421087985,1777006244083,-3437.76,0.00019178,2]
[421087986,1777006244093,-1000.0,0.00019178,2]
[421087987,1777006244102,-500.0,0.00019178,2]
[421087988,1777006244111,-500.0,0.00019178,2]
[421087989,1777006244120,-500.0,0.00019178,2]
[421087990,1777006244130,-500.0,0.00019178,2]
[421087991,1777006244139,-500.0,0.00019178,2]
[421087992,1777006244148,-500.0,0.00019178,2]
[421087993,1777006244157,-500.0,0.00019178,2]
[421087994,1777006244166,-500.0,0.00019178,2]
[421087995,1777006244175,-500.0,0.00019178,2]
[421087996,1777006244184,-500.0,0.00019178,2]
[421087997,1777006244194,-500.0,0.00019178,2]
[421087998,1777006244203,-500.0,0.00019178,2]
[421087999,1777006244212,-541.96685954,0.00019178,2]
[421088000,1777006244222,-687.07,0.00019178,2]
[421088001,1777006244231,-500.0,0.00019178,2]
[421088002,1777006244240,-509.76630832,0.00019178,2]
[421088003,1777006244249,-500.0,0.00019178,2]
[421088004,1777006244260,-500.0,0.00019178,2]
[421088005,1777006244270,-1308.13,0.00019178,2]
[421088006,1777006244279,-500.0,0.00019178,2]
[421088007,1777006244289,-500.0,0.00019178,2]
[421088008,1777006244299,-500.0,0.00019178,2]
[421088009,1777006244308,-348.98991503,0.00019178,2]
[421088010,1777006244318,-500.0,0.00019178,2]
[421088011,1777006244327,-500.0,0.00019178,2]
[421088012,1777006244336,-500.0,0.00019178,2]
[421088013,1777006244345,-500.0,0.00019178,2]
[421088014,1777006244354,-500.0,0.00019178,2]
[421088017,1777006244367,-500.0,0.00019178,2]
[421088018,1777006244377,-750.32,0.00019178,2]
[421088019,1777006244387,-500.0,0.00019178,2]
[421088021,1777006244396,-500.0,0.00019178,2]
[421088023,1777006244405,-500.0,0.00019178,2]
[421088025,1777006244414,-500.0,0.00019178,2]
[421088027,1777006244425,-500.0,0.00019178,2]
[421088029,1777006244434,-500.0,0.00019178,2]
[421088031,1777006244443,-500.0,0.00019178,2]
[421088033,1777006244453,-500.0,0.00019178,2]
[421088035,1777006244463,-500.0,0.00019178,2]
[421088037,1777006244472,-435.01655214,0.00019178,2]
[421088039,1777006244481,-500.0,0.00019178,2]
[421088041,1777006244490,-500.0,0.00019178,2]
[421088043,1777006244500,-500.0,0.00019178,2]
[421088045,1777006244509,-513.61064654,0.00019178,2]
[421088047,1777006244518,-500.0,0.00019178,2]
[421088049,1777006244528,-500.0,0.00019178,2]
[421088050,1777006244537,-500.0,0.00019178,2]
[421088051,1777006244547,-500.0,0.00019178,2]
[421088052,1777006244557,-500.0,0.00019178,2]
[421088053,1777006244566,-156.53511553,0.00019178,2]
[421088054,1777006244575,-500.0,0.00019178,2]
[421088055,1777006244584,-500.0,0.00019178,2]